[Event "*** Titled Tuesday Blitz"]
[Site "Chess.com"]
[Date "2020.05.19"]
[Round "2"]
[White "chesslh19"]
[Black "AlexTruskavetsky"]
[Result "0-1"]
[WhiteElo "2188"]
[BlackElo "2425"]
[TimeControl "180+1"]
[EndTime "12:18:53 PDT"]
[Termination "AlexTruskavetsky won on time"]

1. e4 {[%clk 0:03:00.9]} 1... g6 {[%clk 0:02:58.5]} 2. d4 {[%clk 0:03:00.4]}
2... Bg7 {[%clk 0:02:58.8]} 3. c4 {[%clk 0:03:00.6]} 3... e6 {[%clk 0:02:56.4]}
4. Nc3 {[%clk 0:02:59.2]} 4... Ne7 {[%clk 0:02:56.7]} 5. Nf3 {[%clk 0:02:55.6]}
5... d5 {[%clk 0:02:56.1]} 6. Bg5 {[%clk 0:02:51.2]} 6... h6 {[%clk 0:02:41.4]}
7. Bxe7 {[%clk 0:02:31.4]} 7... Qxe7 {[%clk 0:02:40.3]} 8. cxd5 {[%clk
0:02:01.7]} 8... exd5 {[%clk 0:02:37.7]} 9. Nxd5 {[%clk 0:01:42.1]} 9... Qxe4+
{[%clk 0:02:36.2]} 10. Qe2 {[%clk 0:01:42.2]} 10... Qxe2+ {[%clk 0:02:34.4]} 11.
Bxe2 {[%clk 0:01:42.1]} 11... Kd8 {[%clk 0:02:28.3]} 12. O-O {[%clk 0:01:19.3]}
12... c6 {[%clk 0:02:25.5]} 13. Nc3 {[%clk 0:01:19.1]} 13... Bf5 {[%clk
0:02:23]} 14. Rad1 {[%clk 0:01:12.8]} 14... Nd7 {[%clk 0:02:21.6]} 15. d5 {[%clk
0:01:12.4]} 15... c5 {[%clk 0:02:20.9]} 16. Nb5 {[%clk 0:01:03.5]} 16... Bf8
{[%clk 0:02:15.3]} 17. d6 {[%clk 0:00:44.4]} 17... a6 {[%clk 0:01:57.5]} 18. Nc7
{[%clk 0:00:44]} 18... Rc8 {[%clk 0:01:57.8]} 19. Nd5 {[%clk 0:00:44.2]} 19...
Bxd6 {[%clk 0:01:43]} 20. Ne3 {[%clk 0:00:34.4]} 20... Kc7 {[%clk 0:01:37.9]}
21. Nxf5 {[%clk 0:00:33.9]} 21... gxf5 {[%clk 0:01:38.2]} 22. Bc4 {[%clk
0:00:34]} 22... Rhf8 {[%clk 0:01:21.9]} 23. Nh4 {[%clk 0:00:24.5]} 23... Be5
{[%clk 0:01:15.3]} 24. b3 {[%clk 0:00:19.7]} 24... b5 {[%clk 0:01:13.6]} 25. Bd3
{[%clk 0:00:16.2]} 25... f4 {[%clk 0:01:09.3]} 26. Nf3 {[%clk 0:00:16.1]} 26...
Bf6 {[%clk 0:01:04.7]} 27. Bf5 {[%clk 0:00:15.6]} 27... Rcd8 {[%clk 0:01:04.9]}
28. Rd5 {[%clk 0:00:15]} 28... Kc6 {[%clk 0:01:01.6]} 29. Rfd1 {[%clk
0:00:14.9]} 29... Nb6 {[%clk 0:01:01.5]} 30. Rxd8 {[%clk 0:00:13.7]} 30... Rxd8
{[%clk 0:01:01.6]} 31. Rxd8 {[%clk 0:00:14]} 31... Bxd8 {[%clk 0:01:02.4]} 32.
Kf1 {[%clk 0:00:14.4]} 32... Kd5 {[%clk 0:00:55.5]} 33. Ke2 {[%clk 0:00:13.8]}
33... a5 {[%clk 0:00:51.7]} 34. Bb1 {[%clk 0:00:12.6]} 34... a4 {[%clk
0:00:49.6]} 35. Kd3 {[%clk 0:00:12.2]} 35... a3 {[%clk 0:00:45.3]} 36. Nd2
{[%clk 0:00:11.8]} 36... Bf6 {[%clk 0:00:42]} 37. Ne4 {[%clk 0:00:08.5]} 37...
Bd4 {[%clk 0:00:39.3]} 38. f3 {[%clk 0:00:08.2]} 38... Bg1 {[%clk 0:00:36.1]}
39. h3 {[%clk 0:00:07.8]} 39... Bd4 {[%clk 0:00:28.6]} 40. Bc2 {[%clk
0:00:05.5]} 40... Ke5 {[%clk 0:00:28]} 41. Nd2 {[%clk 0:00:05.2]} 41... Nd5
{[%clk 0:00:27.6]} 42. Bb1 {[%clk 0:00:03.4]} 42... Ne3 {[%clk 0:00:25.6]} 43.
b4 {[%clk 0:00:02.4]} 43... c4+ {[%clk 0:00:24.4]} 44. Ke2 {[%clk 0:00:02.1]}
44... c3 {[%clk 0:00:23.1]} 45. Nb3 {[%clk 0:00:01.3]} 45... c2 {[%clk
0:00:21.8]} 46. Bxc2 {[%clk 0:00:01.1]} 46... Nxc2 {[%clk 0:00:21]} 47. Kd3
{[%clk 0:00:01.5]} 47... Nxb4+ {[%clk 0:00:20.1]} 0-1

[Event "*** Titled Tuesday Blitz"]
[Site "Chess.com"]
[Date "2020.05.19"]
[Round "2"]
[White "Bigfish1995"]
[Black "cstevens1"]
[Result "1-0"]
[WhiteElo "2984"]
[BlackElo "2567"]
[TimeControl "180+1"]
[EndTime "12:18:54 PDT"]
[Termination "Bigfish1995 won by resignation"]

1. e4 {[%clk 0:03:00.9]} 1... c5 {[%clk 0:02:57]} 2. Nc3 {[%clk 0:02:59.8]} 2...
e6 {[%clk 0:02:56.8]} 3. g3 {[%clk 0:02:52.2]} 3... d5 {[%clk 0:02:56.3]} 4. d3
{[%clk 0:02:52]} 4... dxe4 {[%clk 0:02:56.3]} 5. Nxe4 {[%clk 0:02:51.7]} 5...
Nf6 {[%clk 0:02:56.6]} 6. Bg2 {[%clk 0:02:44.9]} 6... Nxe4 {[%clk 0:02:55.8]} 7.
Bxe4 {[%clk 0:02:45]} 7... Nd7 {[%clk 0:02:55.1]} 8. Nh3 {[%clk 0:02:32.7]} 8...
Nf6 {[%clk 0:02:54.2]} 9. Bg2 {[%clk 0:02:32.6]} 9... e5 {[%clk 0:02:53.6]} 10.
O-O {[%clk 0:02:31.3]} 10... Bd6 {[%clk 0:02:53.3]} 11. f4 {[%clk 0:02:28.1]}
11... O-O {[%clk 0:02:33.5]} 12. f5 {[%clk 0:02:28.3]} 12... c4 {[%clk 0:02:18]}
13. Be3 {[%clk 0:02:20.5]} 13... cxd3 {[%clk 0:02:17.5]} 14. cxd3 {[%clk
0:02:20.6]} 14... Bc7 {[%clk 0:02:11.1]} 15. Kh1 {[%clk 0:02:18.2]} 15... h6
{[%clk 0:02:08]} 16. g4 {[%clk 0:02:09.6]} 16... Bb6 {[%clk 0:02:07.9]} 17. Bxb6
{[%clk 0:01:43.3]} 17... Qxb6 {[%clk 0:02:02]} 18. g5 {[%clk 0:01:44.2]} 18...
hxg5 {[%clk 0:02:01.6]} 19. Nxg5 {[%clk 0:01:45.1]} 19... Rd8 {[%clk 0:01:23.7]}
20. Qe2 {[%clk 0:01:42.2]} 20... Bd7 {[%clk 0:01:15.9]} 21. Qxe5 {[%clk
0:01:25.8]} 21... Bc6 {[%clk 0:01:15.7]} 22. Rg1 {[%clk 0:01:11.1]} 22... Qd4
{[%clk 0:01:07.8]} 23. Qxd4 {[%clk 0:00:48.5]} 23... Rxd4 {[%clk 0:01:08.7]} 24.
Bxc6 {[%clk 0:00:48.9]} 24... bxc6 {[%clk 0:01:08.1]} 25. Rac1 {[%clk
0:00:49.5]} 25... Rxd3 {[%clk 0:00:30.3]} 26. Rxc6 {[%clk 0:00:48.9]} 26... Kf8
{[%clk 0:00:29]} 27. Rc7 {[%clk 0:00:45.2]} 27... Rd7 {[%clk 0:00:27]} 28. Nh7+
{[%clk 0:00:42.8]} 28... Ke7 {[%clk 0:00:26.8]} 29. Rxd7+ {[%clk 0:00:36.4]}
29... Nxd7 {[%clk 0:00:27.7]} 30. Rxg7 {[%clk 0:00:35.3]} 30... Rc8 {[%clk
0:00:23]} 31. h3 {[%clk 0:00:29.2]} 31... Rc5 {[%clk 0:00:20.3]} 32. Rg5 {[%clk
0:00:26.3]} 32... Nf6 {[%clk 0:00:20.6]} 33. Nxf6 {[%clk 0:00:18.4]} 33... Kxf6
{[%clk 0:00:21.5]} 34. Rg2 {[%clk 0:00:17.7]} 34... Kxf5 {[%clk 0:00:20.7]} 35.
Kh2 {[%clk 0:00:17.1]} 35... f6 {[%clk 0:00:18.3]} 36. h4 {[%clk 0:00:16.5]}
36... Rc4 {[%clk 0:00:18.3]} 37. Kh3 {[%clk 0:00:16.3]} 37... Rc1 {[%clk
0:00:18.6]} 38. Rf2+ {[%clk 0:00:13.5]} 38... Kg6 {[%clk 0:00:18.7]} 39. b3
{[%clk 0:00:12.6]} 39... f5 {[%clk 0:00:18.4]} 40. Kg3 {[%clk 0:00:12.2]} 40...
Kf6 {[%clk 0:00:18.4]} 41. Rh2 {[%clk 0:00:11.2]} 41... Rg1+ {[%clk 0:00:18.4]}
42. Kf3 {[%clk 0:00:10.7]} 42... Rg8 {[%clk 0:00:16.7]} 43. h5 {[%clk
0:00:08.7]} 43... Rd8 {[%clk 0:00:10.8]} 44. h6 {[%clk 0:00:08.8]} 44... Kg6
{[%clk 0:00:10.5]} 45. h7 {[%clk 0:00:08.5]} 45... Rh8 {[%clk 0:00:10.4]} 46.
Kf4 {[%clk 0:00:08.6]} 1-0

[Event "*** Titled Tuesday Blitz"]
[Site "Chess.com"]
[Date "2020.05.19"]
[Round "2"]
[White "okriak"]
[Black "nabukatnezarr"]
[Result "1-0"]
[WhiteElo "2778"]
[BlackElo "2506"]
[TimeControl "180+1"]
[EndTime "12:18:54 PDT"]
[Termination "okriak won by resignation"]

1. Nf3 {[%clk 0:03:00.9]} 1... c5 {[%clk 0:02:56]} 2. c4 {[%clk 0:03:00.6]} 2...
Nc6 {[%clk 0:02:55.1]} 3. d4 {[%clk 0:03:00.3]} 3... cxd4 {[%clk 0:02:53.3]} 4.
Nxd4 {[%clk 0:03:01]} 4... Nf6 {[%clk 0:02:39.6]} 5. Nc3 {[%clk 0:03:00.5]} 5...
e5 {[%clk 0:02:29]} 6. Ndb5 {[%clk 0:02:58.1]} 6... Bb4 {[%clk 0:02:29.3]} 7. a3
{[%clk 0:02:55.1]} 7... Ba5 {[%clk 0:02:25.9]} 8. Nd6+ {[%clk 0:02:48.5]} 8...
Kf8 {[%clk 0:02:24.1]} 9. b4 {[%clk 0:02:48.2]} 9... Bc7 {[%clk 0:02:22.4]} 10.
e3 {[%clk 0:02:41.8]} 10... Ne8 {[%clk 0:02:19.7]} 11. Nde4 {[%clk 0:02:30.8]}
11... f5 {[%clk 0:02:16.7]} 12. Ng3 {[%clk 0:02:28.5]} 12... d6 {[%clk
0:02:14.2]} 13. Be2 {[%clk 0:02:26.5]} 13... g6 {[%clk 0:02:11.1]} 14. Bb2
{[%clk 0:02:21.3]} 14... Nf6 {[%clk 0:02:09.2]} 15. Qd2 {[%clk 0:02:17.7]} 15...
h5 {[%clk 0:02:07.6]} 16. h4 {[%clk 0:02:16.3]} 16... Qe7 {[%clk 0:01:56.8]} 17.
Nb5 {[%clk 0:02:12.8]} 17... Bb8 {[%clk 0:01:51.6]} 18. Rd1 {[%clk 0:02:11.3]}
18... Ne8 {[%clk 0:01:47.7]} 19. f4 {[%clk 0:01:52.9]} 19... a6 {[%clk
0:01:44.9]} 20. Nc3 {[%clk 0:01:52.5]} 20... Nf6 {[%clk 0:01:40.2]} 21. e4
{[%clk 0:01:52.4]} 21... exf4 {[%clk 0:01:35.6]} 22. Qxf4 {[%clk 0:01:49.8]}
22... d5 {[%clk 0:01:34.9]} 23. Qg5 {[%clk 0:01:43.7]} 23... d4 {[%clk
0:01:22.9]} 24. exf5 {[%clk 0:01:21.1]} 24... dxc3 {[%clk 0:01:15.6]} 25. Bxc3
{[%clk 0:01:20.8]} 25... Be5 {[%clk 0:01:03.4]} 26. Bxe5 {[%clk 0:01:18.8]}
26... Qxe5 {[%clk 0:01:04.3]} 27. O-O {[%clk 0:01:18.5]} 27... Nd4 {[%clk
0:00:54.2]} 28. Bd3 {[%clk 0:01:12.9]} 28... Rg8 {[%clk 0:00:35.1]} 29. fxg6
{[%clk 0:01:11.7]} 29... Qxg5 {[%clk 0:00:26]} 30. hxg5 {[%clk 0:01:11.4]} 30...
h4 {[%clk 0:00:21]} 31. Nh1 {[%clk 0:00:39.7]} 31... Nf5 {[%clk 0:00:04.1]} 32.
Bxf5 {[%clk 0:00:34.8]} 32... Bxf5 {[%clk 0:00:02.9]} 33. Rxf5 {[%clk 0:00:34]}
33... Rxg6 {[%clk 0:00:03.5]} 34. Rxf6+ {[%clk 0:00:32.9]} 34... Rxf6 {[%clk
0:00:03.9]} 35. gxf6 {[%clk 0:00:33.4]} 35... Kf7 {[%clk 0:00:04.8]} 36. Rd7+
{[%clk 0:00:33]} 36... Kxf6 {[%clk 0:00:05]} 37. Rxb7 {[%clk 0:00:33.7]} 37...
a5 {[%clk 0:00:05.3]} 38. Nf2 {[%clk 0:00:32.6]} 38... axb4 {[%clk 0:00:05.5]}
39. axb4 {[%clk 0:00:31.9]} 39... Ra1+ {[%clk 0:00:06]} 40. Kh2 {[%clk
0:00:30.9]} 40... Ke5 {[%clk 0:00:06.9]} 41. c5 {[%clk 0:00:30.3]} 41... Kd5
{[%clk 0:00:07]} 42. Rd7+ {[%clk 0:00:29.7]} 42... Kc6 {[%clk 0:00:06.6]} 43.
Rd6+ {[%clk 0:00:29.9]} 43... Kc7 {[%clk 0:00:06.1]} 44. b5 {[%clk 0:00:29.6]}
44... Rc1 {[%clk 0:00:05.2]} 45. b6+ {[%clk 0:00:29.9]} 45... Kb7 {[%clk
0:00:04.3]} 46. Nd3 {[%clk 0:00:30.2]} 46... Rc3 {[%clk 0:00:03.6]} 47. Kh3
{[%clk 0:00:30.3]} 47... Ka6 {[%clk 0:00:02.2]} 48. Kxh4 {[%clk 0:00:30.3]}
48... Rc4+ {[%clk 0:00:01.9]} 49. g4 {[%clk 0:00:30.1]} 49... Rc3 {[%clk
0:00:02.3]} 50. g5 {[%clk 0:00:29.9]} 50... Kb7 {[%clk 0:00:02.9]} 51. g6 {[%clk
0:00:30]} 1-0

[Event "*** Titled Tuesday Blitz"]
[Site "Chess.com"]
[Date "2020.05.19"]
[Round "2"]
[White "cassoulet"]
[Black "FranciscodelaF"]
[Result "1-0"]
[WhiteElo "2637"]
[BlackElo "2353"]
[TimeControl "180+1"]
[EndTime "12:18:54 PDT"]
[Termination "cassoulet won by checkmate"]

1. e4 {[%clk 0:03:00.9]} 1... e6 {[%clk 0:02:56.7]} 2. d4 {[%clk 0:03:00.4]}
2... d5 {[%clk 0:02:57]} 3. Nc3 {[%clk 0:03:00.5]} 3... Bb4 {[%clk 0:02:54.5]}
4. e5 {[%clk 0:03:00.2]} 4... b6 {[%clk 0:02:54.3]} 5. a3 {[%clk 0:02:57.9]}
5... Bxc3+ {[%clk 0:02:53.3]} 6. bxc3 {[%clk 0:02:58.8]} 6... Qd7 {[%clk
0:02:41.3]} 7. Qg4 {[%clk 0:02:54.6]} 7... f5 {[%clk 0:02:33.2]} 8. Qg3 {[%clk
0:02:53]} 8... Ba6 {[%clk 0:02:33.4]} 9. Ne2 {[%clk 0:02:51.2]} 9... Nc6 {[%clk
0:02:15.2]} 10. h4 {[%clk 0:02:49.3]} 10... Qf7 {[%clk 0:02:08.5]} 11. h5 {[%clk
0:02:38]} 11... O-O-O {[%clk 0:02:08.3]} 12. Nf4 {[%clk 0:02:32.4]} 12... Bxf1
{[%clk 0:02:05.6]} 13. Kxf1 {[%clk 0:02:32.4]} 13... Kb7 {[%clk 0:02:01.6]} 14.
a4 {[%clk 0:02:25.3]} 14... Na5 {[%clk 0:02:01.5]} 15. Rh4 {[%clk 0:02:07.8]}
15... Ne7 {[%clk 0:01:54.4]} 16. Rb1 {[%clk 0:01:54.3]} 16... Rdg8 {[%clk
0:01:50.2]} 17. Qg5 {[%clk 0:01:37.9]} 17... h6 {[%clk 0:01:40.2]} 18. Qg3
{[%clk 0:01:36]} 18... g5 {[%clk 0:01:39.3]} 19. hxg6 {[%clk 0:01:35.9]} 19...
Nxg6 {[%clk 0:01:33.9]} 20. Nxg6 {[%clk 0:01:34.7]} 20... Rxg6 {[%clk
0:01:32.3]} 21. Qf3 {[%clk 0:01:23.7]} 21... h5 {[%clk 0:01:27]} 22. Rb4 {[%clk
0:01:17.4]} 22... Rg4 {[%clk 0:01:13]} 23. g3 {[%clk 0:01:03]} 23... Nc4 {[%clk
0:00:52.7]} 24. Rxc4 {[%clk 0:01:00.1]} 24... a5 {[%clk 0:00:42.5]} 25. Ba3
{[%clk 0:00:41.7]} 25... Qd7 {[%clk 0:00:37.1]} 26. Ke2 {[%clk 0:00:17.6]} 26...
c6 {[%clk 0:00:36.6]} 27. Rc5 {[%clk 0:00:15.4]} 27... bxc5 {[%clk 0:00:35.9]}
28. Bxc5 {[%clk 0:00:16.3]} 28... Ka6 {[%clk 0:00:35.8]} 29. Qd3+ {[%clk
0:00:15.8]} 29... Kb7 {[%clk 0:00:36]} 30. Rh1 {[%clk 0:00:16]} 30... Rb8 {[%clk
0:00:33.1]} 31. Rb1+ {[%clk 0:00:15.8]} 31... Kc8 {[%clk 0:00:33.4]} 32. Rxb8+
{[%clk 0:00:15.2]} 32... Kxb8 {[%clk 0:00:33.4]} 33. Qa6 {[%clk 0:00:14.3]}
33... Qb7 {[%clk 0:00:34]} 34. Bd6+ {[%clk 0:00:14.5]} 34... Kc8 {[%clk
0:00:33.8]} 35. Qxa5 {[%clk 0:00:14.9]} 35... Kd7 {[%clk 0:00:34]} 36. Bb4
{[%clk 0:00:13.8]} 36... h4 {[%clk 0:00:33]} 37. Qc5 {[%clk 0:00:13.3]} 37...
Kc8 {[%clk 0:00:28.5]} 38. Qf8+ {[%clk 0:00:12.8]} 38... Kc7 {[%clk 0:00:28.3]}
39. Bd6+ {[%clk 0:00:12.8]} 39... Kb6 {[%clk 0:00:28.8]} 40. Qd8+ {[%clk
0:00:12.1]} 40... Ka6 {[%clk 0:00:29.1]} 41. Bb4 {[%clk 0:00:10]} 41... Ka7
{[%clk 0:00:29.2]} 42. Bc5+ {[%clk 0:00:09.7]} 42... Ka6 {[%clk 0:00:29.1]} 43.
Bb4 {[%clk 0:00:09.9]} 43... Ka7 {[%clk 0:00:29.6]} 44. Kd2 {[%clk 0:00:10.1]}
44... hxg3 {[%clk 0:00:28.6]} 45. fxg3 {[%clk 0:00:11]} 45... Rxg3 {[%clk
0:00:27.3]} 46. Bc5+ {[%clk 0:00:11.4]} 46... Ka6 {[%clk 0:00:27.6]} 47. Bb4
{[%clk 0:00:12]} 47... Ka7 {[%clk 0:00:28]} 48. Qa5+ {[%clk 0:00:09]} 48... Kb8
{[%clk 0:00:28]} 49. Bd6+ {[%clk 0:00:08.1]} 49... Kc8 {[%clk 0:00:28.4]} 50.
Bb4 {[%clk 0:00:08.3]} 50... Rg8 {[%clk 0:00:28.5]} 51. Qc5 {[%clk 0:00:08.2]}
51... Qc7 {[%clk 0:00:27.3]} 52. a5 {[%clk 0:00:08.3]} 52... Re8 {[%clk
0:00:24.8]} 53. a6 {[%clk 0:00:08.6]} 53... Kd7 {[%clk 0:00:25.5]} 54. Ba5
{[%clk 0:00:08.6]} 54... Qc8 {[%clk 0:00:25]} 55. Qd6# {[%clk 0:00:08.4]} 1-0

[Event "*** Titled Tuesday Blitz"]
[Site "Chess.com"]
[Date "2020.05.19"]
[Round "2"]
[White "Zufi1811"]
[Black "Guenplen"]
[Result "0-1"]
[WhiteElo "2572"]
[BlackElo "2996"]
[TimeControl "180+1"]
[EndTime "12:18:55 PDT"]
[Termination "Guenplen won by resignation"]

1. e4 {[%clk 0:03:00.9]} 1... c5 {[%clk 0:03:00.2]} 2. Nf3 {[%clk 0:03:00.4]}
2... e6 {[%clk 0:03:00.7]} 3. d4 {[%clk 0:02:59.9]} 3... cxd4 {[%clk 0:03:01.6]}
4. Nxd4 {[%clk 0:02:59.9]} 4... Nf6 {[%clk 0:03:02]} 5. Nc3 {[%clk 0:03:00]}
5... Nc6 {[%clk 0:03:02.4]} 6. Ndb5 {[%clk 0:03:00]} 6... Bc5 {[%clk 0:03:01.7]}
7. Nd6+ {[%clk 0:02:56.2]} 7... Ke7 {[%clk 0:03:01.9]} 8. Bf4 {[%clk 0:02:53.1]}
8... e5 {[%clk 0:03:02.2]} 9. Nf5+ {[%clk 0:02:51.7]} 9... Kf8 {[%clk
0:03:02.5]} 10. Bg5 {[%clk 0:02:51.5]} 10... d6 {[%clk 0:03:02.7]} 11. Bxf6
{[%clk 0:02:49.5]} 11... Qxf6 {[%clk 0:03:03.6]} 12. Nd5 {[%clk 0:02:49.4]}
12... Qd8 {[%clk 0:03:03]} 13. Nfe3 {[%clk 0:02:46.6]} 13... g6 {[%clk
0:03:00.7]} 14. c3 {[%clk 0:02:46.1]} 14... a6 {[%clk 0:02:59.3]} 15. b4 {[%clk
0:02:45.8]} 15... Ba7 {[%clk 0:02:59.1]} 16. Bd3 {[%clk 0:02:41.6]} 16... Be6
{[%clk 0:02:52.5]} 17. O-O {[%clk 0:02:40.9]} 17... Rc8 {[%clk 0:02:47.9]} 18.
Qd2 {[%clk 0:02:39.2]} 18... Kg7 {[%clk 0:02:46.1]} 19. Kh1 {[%clk 0:02:37.6]}
19... Ne7 {[%clk 0:02:29.1]} 20. Nxe7 {[%clk 0:02:10.6]} 20... Qxe7 {[%clk
0:02:30]} 21. f4 {[%clk 0:02:01]} 21... exf4 {[%clk 0:02:22.3]} 22. Rxf4 {[%clk
0:02:01.9]} 22... Qg5 {[%clk 0:02:08.2]} 23. Raf1 {[%clk 0:01:20.3]} 23... Rhf8
{[%clk 0:02:06.2]} 24. h3 {[%clk 0:01:04.6]} 24... Bxe3 {[%clk 0:01:49.1]} 25.
Qxe3 {[%clk 0:01:05.5]} 25... Qe5 {[%clk 0:01:49.6]} 26. c4 {[%clk 0:00:44.4]}
26... Bxc4 {[%clk 0:01:42.5]} 27. Bxc4 {[%clk 0:00:45.3]} 27... Rxc4 {[%clk
0:01:43]} 28. Qb6 {[%clk 0:00:42]} 28... Rxe4 {[%clk 0:01:31.7]} 29. Rxe4 {[%clk
0:00:39.5]} 29... Qxe4 {[%clk 0:01:32.6]} 30. Qxd6 {[%clk 0:00:39.1]} 30... Kg8
{[%clk 0:01:02.1]} 31. a3 {[%clk 0:00:34.6]} 31... Re8 {[%clk 0:00:57.5]} 32.
Rf3 {[%clk 0:00:25.9]} 32... Qe1+ {[%clk 0:00:55.5]} 33. Kh2 {[%clk 0:00:26.1]}
33... Qe5+ {[%clk 0:00:56]} 34. Qxe5 {[%clk 0:00:26.2]} 34... Rxe5 {[%clk
0:00:56.9]} 35. Rc3 {[%clk 0:00:26.3]} 35... b5 {[%clk 0:00:50.4]} 36. Rc6
{[%clk 0:00:23.1]} 36... Re6 {[%clk 0:00:50.5]} 37. Rc8+ {[%clk 0:00:22.5]}
37... Kg7 {[%clk 0:00:50.5]} 38. Ra8 {[%clk 0:00:22.8]} 38... g5 {[%clk
0:00:49.2]} 39. Kg3 {[%clk 0:00:20.8]} 39... h5 {[%clk 0:00:27.5]} 40. Kh2
{[%clk 0:00:21.7]} 40... h4 {[%clk 0:00:26.9]} 41. Kg1 {[%clk 0:00:21.6]} 41...
Kg6 {[%clk 0:00:25.9]} 42. Kf2 {[%clk 0:00:21.2]} 42... Kf5 {[%clk 0:00:26.1]}
43. Ra7 {[%clk 0:00:20.1]} 43... f6 {[%clk 0:00:25.8]} 44. Ra8 {[%clk
0:00:20.8]} 44... Kf4 {[%clk 0:00:25]} 45. Ra7 {[%clk 0:00:19.5]} 45... Rc6
{[%clk 0:00:21.4]} 46. Rf7 {[%clk 0:00:14.5]} 46... f5 {[%clk 0:00:20.3]} 47.
Rd7 {[%clk 0:00:14]} 47... Rc2+ {[%clk 0:00:19.9]} 48. Kg1 {[%clk 0:00:13.5]}
48... Rc3 {[%clk 0:00:19.9]} 49. Rd4+ {[%clk 0:00:11]} 49... Ke5 {[%clk
0:00:19.2]} 50. Rd8 {[%clk 0:00:09.6]} 50... Rxa3 {[%clk 0:00:19.1]} 0-1

[Event "*** Titled Tuesday Blitz"]
[Site "Chess.com"]
[Date "2020.05.19"]
[Round "2"]
[White "top_bu_tz"]
[Black "Olga_Girya"]
[Result "1-0"]
[WhiteElo "2227"]
[BlackElo "2425"]
[TimeControl "180+1"]
[EndTime "12:18:56 PDT"]
[Termination "top_bu_tz won on time"]

1. e4 {[%clk 0:03:00.9]} 1... c6 {[%clk 0:02:57.4]} 2. Nc3 {[%clk 0:02:59]} 2...
d5 {[%clk 0:02:57.8]} 3. Nf3 {[%clk 0:02:59.6]} 3... Bg4 {[%clk 0:02:54.7]} 4.
h3 {[%clk 0:02:59.1]} 4... Bxf3 {[%clk 0:02:55]} 5. Qxf3 {[%clk 0:03:00]} 5...
e6 {[%clk 0:02:55.6]} 6. Be2 {[%clk 0:02:59.2]} 6... Nf6 {[%clk 0:02:54.5]} 7.
d3 {[%clk 0:02:59.1]} 7... Bc5 {[%clk 0:02:34.1]} 8. O-O {[%clk 0:02:54.9]} 8...
Nbd7 {[%clk 0:02:33.6]} 9. Qg3 {[%clk 0:02:52.1]} 9... O-O {[%clk 0:02:33]} 10.
Bg5 {[%clk 0:02:39.2]} 10... Bd4 {[%clk 0:02:16.5]} 11. Bh6 {[%clk 0:01:57.9]}
11... Ne8 {[%clk 0:02:13]} 12. Be3 {[%clk 0:01:56.3]} 12... Bxe3 {[%clk
0:02:05]} 13. fxe3 {[%clk 0:01:57.2]} 13... Qc7 {[%clk 0:01:57.5]} 14. Qxc7
{[%clk 0:01:49.2]} 14... Nxc7 {[%clk 0:01:58.4]} 15. exd5 {[%clk 0:01:49.8]}
15... Nxd5 {[%clk 0:01:49.4]} 16. e4 {[%clk 0:01:44.4]} 16... Nxc3 {[%clk
0:01:46.5]} 17. bxc3 {[%clk 0:01:45.3]} 17... e5 {[%clk 0:01:40.5]} 18. a4
{[%clk 0:01:33.1]} 18... Nc5 {[%clk 0:01:33.7]} 19. Rfb1 {[%clk 0:01:30.8]}
19... Rad8 {[%clk 0:01:29.3]} 20. Kf2 {[%clk 0:01:29.8]} 20... f5 {[%clk
0:01:22.3]} 21. Ke3 {[%clk 0:01:29.5]} 21... f4+ {[%clk 0:01:20.9]} 22. Kf3
{[%clk 0:01:23]} 22... Rf6 {[%clk 0:01:21]} 23. Rb4 {[%clk 0:01:21.3]} 23... Rg6
{[%clk 0:01:19.9]} 24. a5 {[%clk 0:00:56.3]} 24... Rd7 {[%clk 0:01:16.4]} 25.
Kf2 {[%clk 0:00:54]} 25... Rgd6 {[%clk 0:01:11.5]} 26. Bf3 {[%clk 0:00:47]}
26... Kf8 {[%clk 0:01:09]} 27. Ke2 {[%clk 0:00:47.2]} 27... Ke8 {[%clk
0:01:06.3]} 28. Rd1 {[%clk 0:00:46.8]} 28... Kd8 {[%clk 0:01:02.9]} 29. Bg4
{[%clk 0:00:36.7]} 29... Re7 {[%clk 0:01:02.3]} 30. Bf3 {[%clk 0:00:33.9]} 30...
Kc7 {[%clk 0:01:01.4]} 31. Rdb1 {[%clk 0:00:27.9]} 31... Kb8 {[%clk 0:01:00]}
32. Kf2 {[%clk 0:00:22.7]} 32... g6 {[%clk 0:01:00]} 33. d4 {[%clk 0:00:20.1]}
33... exd4 {[%clk 0:00:58.3]} 34. cxd4 {[%clk 0:00:21]} 34... Na6 {[%clk
0:00:53.6]} 35. Rc4 {[%clk 0:00:18.8]} 35... Kc7 {[%clk 0:00:28.9]} 36. e5
{[%clk 0:00:17.6]} 36... Rd8 {[%clk 0:00:29]} 37. c3 {[%clk 0:00:17.4]} 37...
Nb8 {[%clk 0:00:25.5]} 38. Rcb4 {[%clk 0:00:11.1]} 38... Nd7 {[%clk 0:00:10.3]}
39. Rxb7+ {[%clk 0:00:10]} 39... Kc8 {[%clk 0:00:10.6]} 40. Bxc6 {[%clk
0:00:09.4]} 40... Rf8 {[%clk 0:00:03.6]} 41. Rxa7 {[%clk 0:00:09]} 41... Kd8
{[%clk 0:00:02.4]} 42. Rbb7 {[%clk 0:00:06.1]} 1-0